Cogmind - Beta 16.1 @@@ ROGUE MODE // 2026.02.23 @ 18:09:43 Player: beans Result: Destroyed by G-50 Soldier with Heavy Laser Performance ------------- Evolutions (4) 2000 Regions Visited (10) 2000 Robots Destroyed (55) 275 Value Destroyed (1687) 1687 Prototype IDs (12) 240 Alien Tech Used (0) 0 Bonus (991) 991 TOTAL SCORE: 7193 Bonus ------- High Alert Combat Kills 15 Follower Combat Kills 251 Registered with UFD 300 Met Optimus in HQ 500 Friendly Fire -75 Cogmind --------- Core Integrity 0/850 Matter 88/300 Energy 278/290 System Corruption 34% Temperature Cool (33) Movement Core (250) Ox4 Location -6/Extension Parts ------- > --- POWER (2) -------- Improved Deuterium Engine > --- PROPULSION (4) --- (None) > --- UTILITY (5) ------ Target Analyzer > --- WEAPON (4) ------- Arc Projector > --- INVENTORY (5) ---- Triangulator Spectral Analyzer Coil Gun Heavy Missile Launcher Companion Sword Peak State ------------ > --- POWER ------------ Micro Nuclear Core Heavy Antimatter Reactor > --- PROPULSION ------- Xenon Bombardment Thruster Xenon Bombardment Thruster Xenon Bombardment Thruster Xenon Bombardment Thruster > --- UTILITY ---------- Triangulator Target Analyzer Improved Armor Integrity Analyzer Weapon Cycler Advanced Focal Shield > --- WEAPON ----------- KN-7UR's Autopenetrator Heavy Machine Gun > --- INVENTORY -------- Xenon Bombardment Thruster Spectral Analyzer Heavy Machine Gun Heavy Missile Launcher Companion Sword [Rating: 69] Favorites ----------- Power Ion Engine Engine Ion Engine Power Core Micro Nuclear Core Reactor Heavy Antimatter Reactor Propulsion Carbon-fiber Leg Leg Carbon-fiber Leg Flight Unit Xenon Bombardment Thruster Utility Drone Bay Device Drone Bay Storage High-capacity Matter Pod Processor Target Analyzer Hackware Hacking Suite Protection Reflective Plating Weapon Improved Assault Rifle Energy Gun Pulse Rifle Energy Cannon Advanced Beam Cannon Ballistic Gun Improved Assault Rifle Ballistic Cannon Heavy Flak Cannon Launcher Grenade Launcher Slashing Weapon Companion Sword Build | -11 -10 -10 -9 -9 -9 -9 -6 -6 -6 -6 ------- Run | Yrd Mat Min Mat Sto Rec Scr Fac Was Fac Ext Slots Evolved 8 | . . . 2 . . . 6 . . . Power 1 | . . . . . . . 1 . . . Propulsion 2 | . . . 1 . . . 1 . . . Utility 3 | . . . 1 . . . 2 . . . Weapon 2 | . . . . . . . 2 . . . Parts Attached 61 | 5 6 3 4 4 3 11 13 3 5 4 Power 9 | 1 . . 1 1 . 2 1 1 . 2 Engine 7 | 1 . . 1 1 . 2 . . . 2 Core 1 | . . . . . . . 1 . . . Reactor 1 | . . . . . . . . 1 . . Propulsion 14 | 2 . 1 . . . 2 5 . 3 1 Treads . | . . . . . . . . . . . Leg 5 | 2 . 1 . . . 1 1 . . . Wheel . | . . . . . . . . . . . Hover . | . . . . . . . . . . . Flight 9 | . . . . . . 1 4 . 3 1 Utility 15 | . 3 . 1 2 1 3 3 2 . . Device 10 | . 2 . . 2 1 2 2 1 . . Storage 1 | . 1 . . . . . . . . . Processor 2 | . . . . . . . 1 1 . . Hackware 1 | . . . 1 . . . . . . . Protection 1 | . . . . . . 1 . . . . Artifact . | . . . . . . . . . . . Weapon 23 | 2 3 2 2 1 2 4 4 . 2 1 Energy Gun 5 | . . 1 1 . 1 . 1 . . 1 Energy Cannon 1 | . . . 1 . . . . . . . Ballistic Gun 11 | 2 2 1 . 1 1 . 2 . 2 . Ballistic Cannon 3 | . . . . . . 3 . . . . Launcher 2 | . 1 . . . . . 1 . . . Special Weapon . | . . . . . . . . . . . Impact Weapon . | . . . . . . . . . . . Slashing Weapon 1 | . . . . . . 1 . . . . Piercing Weapon . | . . . . . . . . . . . Special Melee Weapon . | . . . . . . . . . . . Unidentified Prototypes 6 | . . . 1 1 1 1 . 1 . 1 Corrupted Parts 1 | . . . . . . . . 1 . . System Corruption 5 | . . . . . . . . 5 . . Parts Lost 23 | . . . . 2 3 . 7 1 4 6 Power 4 | . . . . 1 . . 1 1 . 1 Propulsion 9 | . . . . . 1 . 3 . 1 4 Utility 6 | . . . . 1 1 . 3 . 1 . Weapon 4 | . . . . . 1 . . . 2 1 Highest Loss Streak 6 | . . . . 1 2 . 4 1 4 6 To Critical Strikes . | . . . . . . . . . . . Average Backups 4 | . 3 4 5 4 4 4 4 4 4 5 Power . | . . . . . . . . . . . Propulsion . | . . . . . . . . . . . Utility . | . . . 1 . . . 1 1 2 2 Weapon 3 | . 2 4 4 3 3 3 2 3 2 3 Tool/Special . | . . . . . . . . . . . Unused Backups 9 | . 1 2 . 2 . 1 . 1 . 2 Power . | . . . . . . . . . . . Propulsion 1 | . . . . . . . . 1 . . Utility 4 | . 1 . . 2 . . . . . 1 Weapon 4 | . . 2 . . . 1 . . . 1 Tool/Special . | . . . . . . . . . . . Average Slot Usage (%) 72 | . 79 92 75 85 74 80 52 47 21 37 Engine 9 | . 14 14 11 9 11 11 3 . . 1 Leg 15 | . 28 28 22 22 20 14 10 . . . Flight 2 | . . . . . . 1 4 14 6 17 Device 15 | . 7 14 11 17 10 20 15 9 . . Storage 7 | . 1 14 11 11 11 8 . . . . Processor 1 | . . . . . . . . 12 10 6 Protection 1 | . . . . . . 2 . . . . Energy Gun 7 | . . 8 16 22 13 3 . 2 . . Ballistic Gun 9 | . 24 7 . . 8 12 8 2 1 4 Ballistic Cannon 2 | . . . . . . 5 3 . . . Peak Build Rating 69 | 5 7 11 17 21 22 42 51 69 24 24 Average Rating 23 | 3 5 8 13 19 18 27 36 36 15 19 On Entrance 18 | . 5 7 10 17 18 22 41 50 17 19 Avg Prop Armor Cover (%) 4 | . . . . . . 1 1 . . 11 Naked Turns . | . . . . . . . . . . . Heaviest Build 41 | 7 15 15 19 22 24 41 38 22 7 14 Greatest Support 47 | 20 20 25 25 25 25 32 47 24 12 17 Greatest Overweight (x) 4 | 2 . . . . 1 1 3 1 1 4 Average Overweight (x) . | . . . . . . . . . . . Largest Inventory Capacity 5 | 5 5 5 5 5 5 5 5 5 5 5 Average Capacity 5 | 5 5 5 5 5 5 5 5 5 5 5 Most Carried 5 | 3 5 5 5 5 5 5 5 5 5 5 Average Carried 4 | . 3 4 5 4 4 4 4 4 4 5 Final Capacity 5 | 5 5 5 5 5 5 5 5 5 5 5 Final Carried 5 | . 5 5 5 5 4 5 5 5 5 5 Class Distribution -------------------- 74% | Commander-Mutant 20% | Mutant 3% | Scavenger-Sprinter Dominant Class ---------------- Mutant | -10/Materials Mutant | -10/Mines Mutant | -9/Materials Commander-Mutant | -9/Storage Commander-Mutant | -9/Recycling Commander-Mutant | -9/Scraptown Mutant | -6/Factory Mutant | -6/Waste Mutant | -6/Factory Scavenger-Sprinter | -6/Extension Resources | -11 -10 -10 -9 -9 -9 -9 -6 -6 -6 -6 ----------- Run | Yrd Mat Min Mat Sto Rec Scr Fac Was Fac Ext Matter Collected 1546 | 95 72 88 102 353 114 70 388 48 108 108 Remotely . | . . . . . . . . . . . Salvage Created 1853 | . 194 . 37 466 305 . 591 . 81 179 Parts 102 | . 18 . 6 24 9 . 30 . 4 11 Haulers Intercepted 1 | . . . . 1 . . . . . . Recyclers Shooed 5 | . . 1 1 . 1 . 2 . . . Parts Field Recycled . | . . . . . . . . . . . Retrieved Matter . | . . . . . . . . . . . Parts Self-Destructed . | . . . . . . . . . . . Prevented . | . . . . . . . . . . . Parts Restored . | . . . . . . . . . . . Kills | -11 -10 -10 -9 -9 -9 -9 -6 -6 -6 -6 ------- Run | Yrd Mat Min Mat Sto Rec Scr Fac Was Fac Ext Combat Hostiles Destroyed 30 | . 3 . . 5 3 . 14 . 3 2 Melee 3 | . . . . . . . . . 1 2 Guns 20 | . 1 . . 5 3 . 9 . 2 . Cannons 2 | . . . . . . . 2 . . . AOE 5 | . 2 . . . . . 3 . . . Classes Destroyed 13 | . 4 . . 4 1 . 4 . . . Worker 4 | . . . . . . . 4 . . . Builder 9 | . 5 . . 2 1 . . . . 1 Hauler 1 | . . . . 1 . . . . . . Recycler 4 | . . . . 2 2 . . . . . Operator 3 | . 1 . 1 . . . . . . 1 Drone 3 | . . . . . 1 . 2 . . . Watcher 3 | . 1 . 1 . . . 1 . . . Swarmer 9 | . . . . 2 1 . 3 . 3 . Grunt 11 | . 3 . . 1 1 . 6 . . . Duelist 1 | . . . . . . . 1 . . . Sentry 5 | . . . . 2 1 . . . . 2 Hunter 2 | . . . . . . . 2 . . . Programmer 3 | . . . . . . . 3 . . . Best Kill Streak 8 | . 8 . 1 2 2 . 6 . 2 1 Combat Bots Only 4 | . 2 . . 2 2 . 4 . 2 1 Max Kills in Single Turn 4 | . 4 . 1 1 1 . 3 . 1 1 Gunslinging . | . . . . . . . . . . . Exploded 3 | . 2 . . . . . 3 . . . Melee 1 | . . . . . . . . . 1 1 Uniques/NPCs Destroyed . | . . . . . . . . . . . Combat | -11 -10 -10 -9 -9 -9 -9 -6 -6 -6 -6 -------- Run | Yrd Mat Min Mat Sto Rec Scr Fac Was Fac Ext Hostile Shots Fired 315 | . 13 . 12 35 17 . 85 2 51 100 Missed 106 | . 8 . 7 10 4 . 30 1 7 39 Hits 209 | . 5 . 5 25 13 . 55 1 44 61 Melee 1 | . . . . . . . . 1 . . Projectile 208 | . 5 . 5 25 13 . 55 . 44 61 Critical Strikes 4 | . . . 1 . . . . . . 3 Damage Taken 2985 | . 61 . 73 361 432 . 755 89 655 559 Core 1038 | . 21 . 31 100 25 . 136 63 411 251 Absorbed by Shields 72 | . . . . . . . 72 . . . Ignored by Resistances 138 | . . . . . . . 138 . . . Core Remaining (%) 84 | 100 . 91 . . . 61 . . . . Volleys Fired 175 | . 18 4 7 30 16 . 54 23 13 10 Largest 2 | . 2 1 2 2 2 . 2 1 1 1 Hottest 126 | . 40 63 126 126 126 . 120 120 120 55 Shots Fired 282 | . 33 4 13 58 29 . 100 23 13 9 Gun 258 | . 30 4 13 58 29 . 81 21 13 9 Cannon 18 | . . . . . . . 18 . . . Launcher 6 | . 3 . . . . . 1 2 . . Special . | . . . . . . . . . . . Kinetic 147 | . 30 . . . 13 . 93 . 11 . Thermal 120 | . . 4 13 58 16 . 6 21 2 . Explosive 6 | . 3 . . . . . 1 2 . . Electromagnetic 9 | . . . . . . . . . . 9 Robot Hit Streak 10 | . 5 3 7 8 7 . 10 7 3 4 Robot Miss Streak 9 | . 3 3 2 3 2 . 6 9 8 3 Penetration Max 1 | . . . . . 1 . . 1 . . Secondary Targets . | . . . . . . . . . . . Shots Hit Robots 183 | . 18 3 9 35 22 . 52 15 10 19 Core Hits 117 | . 15 . 2 15 11 . 43 19 6 6 Critical Kills . | . . . . . . . . . . . Critical Parts Destroyed 1 | . 1 . . . . . . . . . Critical Strikes 8 | . 1 . . 3 2 . . . . 2 Burn 5 | . . . . 3 2 . . . . . Destroy 1 | . 1 . . . . . . . . . Melee Attacks 23 | . . . . . . . . . 4 19 Impact . | . . . . . . . . . . . Slashing 23 | . . . . . . . . . 4 19 Piercing . | . . . . . . . . . . . Sneak Attacks 1 | . . . . . . . . . . 1 Combat Hostiles . | . . . . . . . . . . . Follow-up Attacks . | . . . . . . . . . . . Damage Inflicted 6524 | . 503 50 151 763 442 . 2697 1060 230 628 Guns 3474 | . 155 50 151 646 442 . 957 880 134 59 Cannons 381 | . . . . . . . 381 . . . Explosions 2039 | . 348 . . 117 . . 1359 180 35 . Melee 616 | . . . . . . . . . 47 569 Ramming 14 | . . . . . . . . . 14 . Kinetic 1557 | . 155 . . . 129 . 1171 . 102 . Thermal 3131 | . . 50 151 646 313 . 1059 880 32 . Explosive 1112 | . 348 . . 117 . . 467 180 . . Electromagnetic 94 | . . . . . . . . . 35 59 Impact . | . . . . . . . . . . . Slashing 616 | . . . . . . . . . 47 569 Piercing . | . . . . . . . . . . . Highest Corruption 34 | . . . . 1 4 4 3 34 34 34 Average Corruption 8 | . . . . 1 1 4 2 22 34 34 Corruption Purged . | . . . . . . . . . . . Corruption Blocked . | . . . . . . . . . . . Effects 60 | . . . . 2 12 5 2 13 13 13 Message Errors 17 | . . . . 1 3 3 . 3 3 4 Matter Fused 11 | . . . . 1 3 . 1 2 . 4 Heat Flow Errors 9 | . . . . . 2 1 . 2 2 2 Energy Discharges 7 | . . . . . 1 1 1 2 1 1 Parts Rejected 1 | . . . . . . . . . 1 . Parts Fused 1 | . . . . . . . . 1 . . Data Loss (minor) 5 | . . . . . 2 . . . 2 1 Misfires 1 | . . . . . 1 . . . . . Alerts 3 | . . . . . . . . . 3 . Misdirections 4 | . . . . . . . . 3 1 . Weapon Failures 1 | . . . . . . . . . . 1 Overload Shots . | . . . . . . . . . . . Overflow Damage 352 | . 17 . . 5 . . 289 . . 41 Projectiles . | . . . . . . . . . . . Explosions 311 | . 17 . . 5 . . 289 . . . Melee 41 | . . . . . . . . . . 41 Knockbacks 11 | . . . . . . . 11 . . . Impact . | . . . . . . . . . . . Kinetic 10 | . . . . . . . 10 . . . Secondary 1 | . . . . . . . 1 . . . Self-Inflicted Damage 165 | . 7 . . 40 . . 57 52 9 . Shots 5 | . 1 . . 1 . . 1 1 1 . Rammed 3 | . . . . . . . . . 3 . Targets Rammed 3 | . . . . . . . . . 3 . Kicked . | . . . . . . . . . . . Crushed . | . . . . . . . . . . . Highest Temperature 376 | . 6 88 376 238 177 173 245 372 230 228 Average Temperature 95 | . 6 47 178 46 68 92 51 173 94 59 Received Heat Transfer 618 | . 30 . 36 87 147 . 81 . . 237 Effects 7 | . . . 1 . . . . 6 . . Energy Bleed 1 | . . . . . . . . 1 . . Interference 6 | . . . 1 . . . . 5 . . Siege Activations . | . . . . . . . . . . . Martial Activations . | . . . . . . . . . . . Shielding Activations . | . . . . . . . . . . . Robots Disrupted . | . . . . . . . . . . . Combat Hostiles . | . . . . . . . . . . . Robots Corrupted . | . . . . . . . . . . . Combat Hostiles . | . . . . . . . . . . . Parts Fried . | . . . . . . . . . . . Impact Corruptions . | . . . . . . . . . . . Robots Melted . | . . . . . . . . . . . Combat Hostiles . | . . . . . . . . . . . Parts Melted 13 | . . . . 5 6 . 2 . . . Heat Transferred 5914 | . . 111 333 1628 842 . 950 1975 75 . Parts Sabotaged . | . . . . . . . . . . . Parts Stolen . | . . . . . . . . . . . Parts Stripped . | . . . . . . . . . . . Power Chain Reactions . | . . . . . . . . . . . Alert | -11 -10 -10 -9 -9 -9 -9 -6 -6 -6 -6 ------- Run | Yrd Mat Min Mat Sto Rec Scr Fac Was Fac Ext Maximum Alert Level 2 | . . . . . . . 2 . . . Low Security (%) 91 | 100 100 100 100 100 100 . 47 100 100 100 Level 1 6 | . . . . . . . 42 . . . Level 2 1 | . . . . . . . 10 . . . Level 3 . | . . . . . . . . . . . Level 4 . | . . . . . . . . . . . Level 5 . | . . . . . . . . . . . High Security . | . . . . . . . . . . . Max Security . | . . . . . . . . . . . Peak Influence 425 | . 130 46 7 183 52 . 425 142 120 71 Initial 142 | . . 46 . . 16 . . 142 1 44 Average 62 | . 16 18 2 83 6 . 203 67 34 42 Influence Increases 2000 | . 177 . 12 542 147 . 791 20 176 135 Destroy 0b10 Robot/C 780 | . 60 . . 240 100 . 280 . 60 40 Destroy 0b10 Robot/NC 135 | . 35 . 10 40 15 . 25 . . 10 Destroy Leader 192 | . 12 . 2 86 . . 72 . 10 10 Allied During Kill 165 | . . . . 134 31 . . . . . Successful Hack 12 | . . . . . . . . . . 12 Disable Machine 435 | . 30 . . 30 . . 285 . 90 . Destroy Structure 131 | . 25 . . 12 1 . 69 20 1 3 Partial Spotted 45 | . . . . . . . . . 15 30 Lose Combat Pursuer 105 | . 15 . . . . . 60 . . 30 Influence Decreases 1980 | . 57 120 12 500 189 . 383 426 88 205 Entered New Map 413 | . . 74 . . 26 . . 266 1 46 Time Decay 1211 | . 57 46 12 370 147 . 273 130 56 120 Lost Part 176 | . . . . 20 16 . 60 10 31 39 Lost Ally 180 | . . . . 110 . . 50 20 . . Squads Dispatched 10 | . 1 1 . 4 . . 3 . . 1 Investigation 2 | . . 1 . . . . . . . 1 Extermination 1 | . . . . . . . 1 . . . Reinforcement 4 | . 1 . . 1 . . 2 . . . Assault . | . . . . . . . . . . . Garrison 3 | . . . . 3 . . . . . . Intercept . | . . . . . . . . . . . Searches Triggered . | . . . . . . . . . . . Construction Impeded 1 | . . . . . . . 1 . . . Haulers Reinforced . | . . . . . . . . . . . Active Scanning Responses . | . . . . . . . . . . . Cargo Convoy Interrupts . | . . . . . . . . . . . Stealth | -11 -10 -10 -9 -9 -9 -9 -6 -6 -6 -6 --------- Run | Yrd Mat Min Mat Sto Rec Scr Fac Was Fac Ext Distress Signals 5 | . . . . 3 . . 1 . 1 . Communications Jammed . | . . . . . . . . . . . Distress Signals . | . . . . . . . . . . . Times Spotted 81 | . 6 . 4 24 5 . 20 10 7 5 Peak Tracking Total 6 | . 2 . 2 5 2 . 3 6 5 2 Tactical Retreats 8 | . 1 . . . . . 2 3 . 2 Traps | -11 -10 -10 -9 -9 -9 -9 -6 -6 -6 -6 ------- Run | Yrd Mat Min Mat Sto Rec Scr Fac Was Fac Ext Traps Triggered 4 | . . . . 1 . . 3 . . . Indirectly . | . . . . . . . . . . . Trap Hack Attempts . | . . . . . . . . . . . Triggered . | . . . . . . . . . . . Disarmed . | . . . . . . . . . . . Reprogrammed . | . . . . . . . . . . . Reused . | . . . . . . . . . . . Traps Extracted . | . . . . . . . . . . . Installed . | . . . . . . . . . . . Triggered . | . . . . . . . . . . . Machines | -11 -10 -10 -9 -9 -9 -9 -6 -6 -6 -6 ---------- Run | Yrd Mat Min Mat Sto Rec Scr Fac Was Fac Ext Machines Disabled 29 | . 2 . . 2 . . 19 . 6 . Max in Single Turn 10 | . 1 . . 2 . . 10 . 6 . Machines Repaired . | . . . . . . . . . . . Machines Dismantled . | . . . . . . . . . . . Machines Sabotaged . | . . . . . . . . . . . Overloaded Fab Kills . | . . . . . . . . . . . Hacking | -11 -10 -10 -9 -9 -9 -9 -6 -6 -6 -6 --------- Run | Yrd Mat Min Mat Sto Rec Scr Fac Was Fac Ext Machines Accessed 11 | . 1 1 . . . 2 1 . 3 3 Terminals 3 | . . . . . . . . . 1 2 Fabricators 2 | . . . . . . . 1 . 1 . Repair Stations 1 | . 1 . . . . . . . . . Recycling Units 1 | . . . . . . . . . . 1 Scanalyzers 1 | . . . . . . . . . 1 . Garrison Access . | . . . . . . . . . . . Total Hacks 21 | . 1 1 . . . 10 1 . 3 5 Successful 16 | . . 1 . . . 10 1 . 1 3 Failed 5 | . 1 . . . . . . . 2 2 Catastrophic 1 | . 1 . . . . . . . . . Database Lockouts . | . . . . . . . . . . . Manual 1 | . . . . . . . . . . 1 Terminals 4 | . . . . . . . . . 1 3 Fabricators 2 | . . . . . . . 1 . 1 . Repair Stations 1 | . 1 . . . . . . . . . Recycling Units 2 | . . . . . . . . . . 2 Scanalyzers 1 | . . . . . . . . . 1 . Garrison Access . | . . . . . . . . . . . Terminal Hacks 12 | . . 1 . . . 10 . . . 1 Record 2 | . . . . . . 1 . . . 1 Robot Analysis 8 | . . . . . . 8 . . . . Open Door 2 | . . 1 . . . 1 . . . . Fabricator Hacks 2 | . . . . . . . 1 . 1 . Network Status 2 | . . . . . . . 1 . 1 . Repair Station Hacks . | . . . . . . . . . . . Recycling Unit Hacks 1 | . . . . . . . . . . 1 Retrieve Matter 1 | . . . . . . . . . . 1 Scanalyzer . | . . . . . . . . . . . Garrison Access Hacks . | . . . . . . . . . . . Unauthorized Hacks 1 | . . . . . . . . . . 1 Terminals . | . . . . . . . . . . . Fabricators . | . . . . . . . . . . . Repair Stations . | . . . . . . . . . . . Recycling Units 1 | . . . . . . . . . . 1 Fedlink 1 | . . . . . . . . . . 1 Scanalyzers . | . . . . . . . . . . . Garrison Access . | . . . . . . . . . . . Data Cores Recovered 3 | . . . 1 1 . . . . . 1 Used . | . . . . . . . . . . . Hacking Detections 4 | . 1 . . . . . . . 2 1 Full Trace Events . | . . . . . . . . . . . Feedback Events . | . . . . . . . . . . . Feedback Blocked . | . . . . . . . . . . . Robot Schematics Acquired . | . . . . . . . . . . . Robots Built . | . . . . . . . . . . . Authchips . | . . . . . . . . . . . Time . | . . . . . . . . . . . Total Robot Build Rating . | . . . . . . . . . . . Part Schematics Acquired . | . . . . . . . . . . . Parts Built . | . . . . . . . . . . . Authchips . | . . . . . . . . . . . Time . | . . . . . . . . . . . Total Part Build Rating . | . . . . . . . . . . . Part Studies Acquired . | . . . . . . . . . . . Parts Repaired . | . . . . . . . . . . . Time . | . . . . . . . . . . . Parts Recycled . | . . . . . . . . . . . Recycled Matter . | . . . . . . . . . . . Retrieved Matter . | . . . . . . . . . . . Retrieved Components . | . . . . . . . . . . . Parts Scanalyzed . | . . . . . . . . . . . Part Schematics Acquired . | . . . . . . . . . . . Parts Damaged . | . . . . . . . . . . . Bothacking | -11 -10 -10 -9 -9 -9 -9 -6 -6 -6 -6 ------------ Run | Yrd Mat Min Mat Sto Rec Scr Fac Was Fac Ext Used RIF Installer . | . . . . . . . . . . . Robots Hacked . | . . . . . . . . . . . Non-combat . | . . . . . . . . . . . Combat . | . . . . . . . . . . . Robot Hacks Applied . | . . . . . . . . . . . Relay Couplers Released . | . . . . . . . . . . . Fabnet Peak Effective % . | . . . . . . . . . . . Robots Rewired . | . . . . . . . . . . . Allies Hacked . | . . . . . . . . . . . Hacks Repelled . | . . . . . . . . . . . Allies | -11 -10 -10 -9 -9 -9 -9 -6 -6 -6 -6 -------- Run | Yrd Mat Min Mat Sto Rec Scr Fac Was Fac Ext Total Allies 11 | . . . . 10 . . . 1 . . Largest Group 10 | . . . . 10 5 5 5 1 . . Highest-Rated Group 88 | . . . . 88 48 48 48 31 . . Highest-Rated Ally 31 | . . . . 16 16 16 16 31 . . Initial UFD Resources 23 | . . . . . . . 23 23 23 23 Total Orders 45 | . . . . 5 28 12 . . . . STAY 1 | . . . . . 1 . . . . . ROAM 1 | . . . . . . 1 . . . . FOLLOW 7 | . . . . . 1 6 . . . . EXPLORE 25 | . . . . 3 19 3 . . . . RETURN 11 | . . . . 2 7 2 . . . . Ally Attacks 100 | . . . . 74 13 . 10 3 . . Total Damage 909 | . . . . 629 158 . 80 42 . . Kills 12 | . . . . 10 2 . . . . . Allies Corrupted . | . . . . . . . . . . . Allies Melted . | . . . . . . . . . . . Intel | -11 -10 -10 -9 -9 -9 -9 -6 -6 -6 -6 ------- Run | Yrd Mat Min Mat Sto Rec Scr Fac Was Fac Ext Active Infowar (turns) 1020 | . 158 139 76 222 . . 318 107 . . Sensors 590 | . 153 139 76 222 . . . . . . Terrain 5 | . 5 . . . . . . . . . Triangulation 425 | . . . . . . . 318 107 . . Robot Analysis Total 8 | . . . . . . 8 . . . . Derelict Logs Recovered . | . . . . . . . . . . . Drone Launches 34 | . . . . 17 17 . . . . . Drone Recoveries 20 | . . . . 2 16 2 . . . . Exploration | -11 -10 -10 -9 -9 -9 -9 -6 -6 -6 -6 ------------- Run | Yrd Mat Min Mat Sto Rec Scr Fac Was Fac Ext Turns Passed 7567 | 48 312 139 76 884 1326 3363 674 271 234 240 Spaces Moved 3864 | 34 199 93 42 526 471 1078 394 397 432 198 Core 40 | 12 . . . . . . . . 18 10 Treads . | . . . . . . . . . . . Legs 2698 | 22 199 93 42 526 471 1078 267 . . . Wheels . | . . . . . . . . . . . Hover . | . . . . . . . . . . . Flight 1126 | . . . . . . . 127 397 414 188 Fastest Speed 26 | 50 120 120 120 120 120 125 31 31 29 26 Average Speed 118 | 112 120 120 120 120 126 188 121 40 39 39 Slowest Speed 290 | 150 120 120 120 120 190 195 290 117 100 250 Overloaded Moves . | . . . . . . . . . . . Propulsion Burnouts . | . . . . . . . . . . . Robots Hopped 4 | . . . . . . . . 3 1 . Potential Cave-ins . | . . . . . . . . . . . Cave-ins Triggered . | . . . . . . . . . . . Exploration Rate (%) 43 | 3 33 33 5 79 99 96 13 97 8 14 Regions Visited 10 Branch Regions 5 Pre-discovered Areas . | . . . . . . . . . . . Known Exits Taken . | . . . . . . . . . . . Unknown Exits Taken 8 | 1 1 1 1 1 1 1 . . 1 . Scrap Searched 2 | . . . . . . 2 . . . . Spaces Dug 9 | . 5 . . . . . . . . 4 Terrain Destroyed 138 | . 24 . . 15 . . 67 27 1 4 Melee 4 | . . . . . . . . . . 4 Projectile . | . . . . . . . . . . . AOE 132 | . 24 . . 15 . . 66 27 . . Terrain Rammed . | . . . . . . . . . . . Walls Destroyed . | . . . . . . . . . . . Machines Disabled . | . . . . . . . . . . . Actions | -11 -10 -10 -9 -9 -9 -9 -6 -6 -6 -6 --------- Run | Yrd Mat Min Mat Sto Rec Scr Fac Was Fac Ext Total 6560 | 43 243 118 53 723 1172 2412 510 490 477 319 Wait 2326 | . 8 10 . 142 679 1296 37 53 13 88 Move 3848 | 33 198 92 41 525 470 1077 394 391 429 198 Hop 3 | . . . . . . . . 2 1 . Pick Up 40 | 5 9 3 . 5 1 8 2 1 6 . Fast Attach 35 | . 2 1 3 4 . 6 11 3 2 3 Attach 24 | 5 1 . . 1 2 3 4 2 6 . Detach 11 | . . 1 . 1 . 2 2 5 . . Swap 22 | . 3 2 1 . 4 8 2 1 . 1 Drop 43 | . 4 5 1 8 . 12 4 9 . . Fire 175 | . 18 4 7 30 16 . 54 23 13 10 Melee 23 | . . . . . . . . . 4 19 Ram 3 | . . . . . . . . . 3 . Kick . | . . . . . . . . . . . Crush . | . . . . . . . . . . . Escape Stasis . | . . . . . . . . . . . Rewire . | . . . . . . . . . . . Trap . | . . . . . . . . . . . Miscellaneous 7 | . . . . 7 . . . . . . Route ------- -11/Scrapyard -10/Materials -10/Mines -9/Materials -9/Storage (discovered 2 exits: [*Mat] / [*Rec]) -9/Recycling (discovered 2 exits: [*Fac] / *Scr) -9/Scraptown (discovered 2 exits: *Fac x2) -6/Factory -6/Waste -6/Factory -6/Extension History --------- Turn | Location | Event 5 | -11/Scrapyard | Discovered new exit (range 16) 49 | -11/Scrapyard | Entered Materials 300 | -10/Materials | Build established: Mutant 354 | -10/Materials | Discovered new exit (range 6) 361 | -10/Materials | Entered Mines 401 | -10/Mines | Met a Derelict shopkeep closing up shop 469 | -10/Mines | Discovered new exit (range 13) 500 | -10/Mines | Entered Materials 500 | -9/Materials | Evolved 2 slots: Propulsion x1, Utility x1 521 | -9/Materials | Discovered new exit (range 8) 576 | -9/Materials | Entered Storage 586 | -9/Storage | Assisted by bots powering up and referring to "LRC-V3" 635 | -9/Storage | Met 01-MTF 677 | -9/Storage | Garrison activated, responded to threat 731 | -9/Storage | Lost 4 allies 871 | -9/Storage | Build established: Commander-Mutant 969 | -9/Storage | Discovered new exit (range 17) 1133 | -9/Storage | Discovered new exit (range 7) 1460 | -9/Storage | Entered Recycling 1460 | -9/Recycling | Accompanied by 19 allies (01-MTF) 1620 | -9/Recycling | Discovered new exit (range 70) 2558 | -9/Recycling | Scanned before Scraplab entrance 2580 | -9/Recycling | Found Prototype Energy Gun 2588 | -9/Recycling | Entered Scraplab 2598 | -9/Recycling | Discovered new exit (range 2) 2633 | -9/Recycling | Identified KN-7UR's Autopenetrator 2786 | -9/Recycling | Entered Scraptown 2786 | -9/Scraptown | Accompanied by 16 allies 2921 | -9/Scraptown | System corruption cleaned by C-Scrubber 2972 | -9/Scraptown | Discovered new exit (range 75) 3253 | -9/Scraptown | Visited UFD Registry 3253 | -9/Scraptown | Registered with UFD as "Thermotube" 3375 | -9/Scraptown | Discovered new exit (range 64) 4403 | -9/Scraptown | Visited Infowarlord's Domain 4414 | -9/Scraptown | Found Spectral Analyzer 5509 | -9/Scraptown | Visited Analyses Database 5583 | -9/Scraptown | Visited Junk Repository 5715 | -9/Scraptown | Visited Sword Containment 5748 | -9/Scraptown | Found Prototype Slashing Weapon 5819 | -9/Scraptown | Identified Companion Sword 6023 | -9/Scraptown | Met Optimus 6023 | -9/Scraptown | Accepted into 0bPrime 6149 | -9/Scraptown | Entered Factory 6149 | -6/Factory | Accompanied by 14 allies 6149 | -6/Factory | Evolved 6 slots: Power x1, Propulsion x1, Utility x2, Weapon x2 6251 | -6/Factory | Lost 3 parts (1n2u) 6251 | -6/Factory | Lost 7 allies 6625 | -6/Factory | Lost 4 parts (1p2n1u) 6674 | -6/Factory | Build established: Mutant 6823 | -6/Factory | Manually triggered Chute Trap 6823 | -6/Factory | Sucked down chute 6823 | -6/Factory | Entered Waste 6824 | -6/Waste | Met a frightened Derelict 6828 | -6/Waste | Spotted C-40 Crusher 6828 | -6/Waste | Spotted C-40 Crusher 6828 | -6/Waste | Spotted C-40 Crusher 6838 | -6/Waste | EMP discharged 6838 | -6/Waste | System corruption reached 10% 6850 | -6/Waste | Spotted C-40 Crusher 6850 | -6/Waste | Spotted C-40 Crusher 6861 | -6/Waste | Discovered new exit (range 16) 6862 | -6/Waste | Spotted C-40 Crusher 6938 | -6/Waste | EMP discharged 7038 | -6/Waste | EMP discharged 7038 | -6/Waste | System corruption reached 30% 7039 | -6/Waste | Crushed by Compactor (1 part destroyed, 2 dropped) 7094 | -6/Waste | Entered Factory 7182 | -6/Factory | Discovered new exit (range 15) 7249 | -6/Factory | Core integrity fell below 50% 7297 | -6/Factory | Lost 4 parts (1n1u2w) 7328 | -6/Factory | Entered Extension 7439 | -6/Extension | Loaded intel: 1 recycling unit location 7516 | -6/Extension | Core integrity fell below 20% 7546 | -6/Extension | Lost 6 parts (1p4n1w) 7568 | -6/Extension | Destroyed by G-50 Soldier with Heavy Laser Last Messages --------------- 9XMROIANS V O#&NJWQQ,GA0IWOM|OZE,6Z Lgt. Ion Engine destroyed. VTOL Module destroyed. Y-54 Guardian Lgt. Treads severed. VTOL Module destroyed. Autogun destroyed. VTOL Module destroyed. System corrupted: Heat flow error (+159). Destroyed Gatling Laser. Y-54 Guardian destroyed. Acquired Imp. Deuterium Engine. Critical hit (Burn: +37). System corrupted: Matter fused (-7). Companion Sword: "All the other swords are going to make fun of me now." Critical hit (Burn: +37). System corrupted: Matter fused (-5). System corrupted: Arc Projector failed to cycle. Critical hit (Burn: +37). G-50 Soldier misfires. Map ----- +----------------------------------------------------+ | | | | | | | | | | | | | | | | | ?????????????????????????????????????????????? | | ?????????????????????????#####???????????????? | | ????????????#####??????? #######?????????? | | ????????????# #??##### T" ????????? | | ????????????# #?## " ????????? | | ????????????#[ #?#" ### ????????? | | ????????????# #?## #?? #######?????????? | | ???#####????# #??# #???# ###???????????????? | | ???# #T###??# !#??# #???? ????????????????? | | ??## #??# #?## ##????"##???????????????? | | ??#" """!######+### #??????????????????????? | | ??#T "Y"=+ ! T #??????????????????????? | | ??#" =### ### #??????????????????????? | | ??## =#?# ##"####??????????????????????? | | ???# ] #?# # ##?#######?????????????????? | | ???# !#?# ##???# ###???????????????? | | ???###+##### ######="T #!#???????????????? | | ?????# g |@!"" =+%"???????????????? | | ?????# ##" ########### !#T#???????????????? | | ?????# ##"T#?????????# #?????????????????? | | ?????# #####????????#"######?????????????????? | | ?????# #????????????##???????????????????????? | | ?????# #?????????????????????????????????????? | | ?????# #?????????????????????????????????????? | | ?????# #?????????????????????????????????????? | | ?????# #?????????????????????????????????????? | | ?????# #?????????????????????????????????????? | | ?????# #?????????????????????????????????????? | | ?????# #?????????????????????????????????????? | | ?????# #?????????????????????????????????????? | | ?????# #?????????????????????????????????????? | | ?????# #?????????????????????????????????????? | | ?????# #?????????????????????????????????????? | | ?????# #?????????????????????????????????????? | | ?##### #####?????????????????????????????????? | | ?# "" "" #?????????????????????????????????? | | ?# " " ##########????????????????????????? | | ?# ???????????????????????? | | ?# ???????????????????????? | | ?# ???????????????????????? | | ?# ???????????????????????? | | ?# ???????????????????????? | +----------------------------------------------------+ Best States ------------- Heat Dissipation 42 Energy Generation 26 Energy Capacity 340 Matter Stores 500 Matter Capacity 500 Sight Range 16 Robot Scan Range 14 Terrain Scan Density 10 Armor Coverage 150 Resistance: KI 20 Resistance: TH 10 Weapon Cycling 15 Evasion (%) 64 Target Analysis 5 Armor Integrity Analysis 40 Offensive Hacking 10 Item Schematics ----------------- None Robot Schematics ------------------ None Fabricated ------------ Nothing Repaired ---------- Nothing Studied --------- None Alien Tech Used ----------------- None Achievements -------------- Frienemies Challenges ------------ None Game ------ Seed RelayRemoteLaser Manual? 0 Play Time 01:10:20 Cumulative 242.8 hours Start 2026.02.22 @ 17:26:54 End 2026.02.23 @ 18:09:43 Sessions 1 Manual Loads 0 Difficulty Rogue Special Mode None Game No. 663 Rogue 661 Adventurer 2 Explorer 0 Win Type - Total 0 Types 0/0/0/0/0/0/0/0/0/0 Lore% 66 Gallery% 62 Achievement% 41 Wizard Run 0 Options --------- Layout 1 ASCII 0 Keyboard 0 Movement Mouse Keybinds 0 Fullscreen 1 Font 24/Smallcaps Map View 50x35 Zoom Use 0% Tactical HUD 0 Map Filters NONE Filters NONE Steam 1 RUN: 809833b8-e018-4c15-9c45-a5934dd127c6